[Event "Titled Tuesday Blitz June 27 Early 2023"]
[White "Moiseenko, Alexander"]
[Black "Ballecer, Dino"]
[WhiteFideId "14102560"]
[BlackFideId "5203597"]
[WhiteElo "2832"]
[BlackElo "2586"]
[Result "1-0"]
[Round "2"]
[TimeControl "180+2"]
[Date "2023.06.27"]
[WhiteClock "0:00:58"]
[BlackClock "0:00:51"]
[Board "58"]

1. d4 {[%clk 0:03:00]}  Nf6 {[%clk 0:02:59]} 2. Bg5 {[%clk 0:03:00]}  e6 {[%clk 0:02:57]} 3. e4 {[%clk 0:03:00]}  h6 {[%clk 0:02:57]} 4. Bxf6 {[%clk 0:03:00]}  Qxf6 {[%clk 0:02:58]} 5. c3 {[%clk 0:03:00]}  d6 {[%clk 0:02:57]} 6. Bd3 {[%clk 0:03:00]}  g6 {[%clk 0:02:52]} 7. Ne2 {[%clk 0:03:00]}  Bg7 {[%clk 0:02:51]} 8. O-O {[%clk 0:03:01]}  e5 {[%clk 0:02:49]} 9. f4 {[%clk 0:03:01]}  exd4 {[%clk 0:02:48]} 10. cxd4 {[%clk 0:03:01]}  O-O {[%clk 0:02:48]} 11. Nbc3 {[%clk 0:02:59]}  Nc6 {[%clk 0:02:47]} 12. e5 {[%clk 0:02:46]}  Qd8 {[%clk 0:02:46]} 13. h3 {[%clk 0:02:32]}  dxe5 {[%clk 0:02:26]} 14. dxe5 {[%clk 0:02:30]}  Be6 {[%clk 0:02:26]} 15. Be4 {[%clk 0:02:21]}  Qe7 {[%clk 0:02:18]} 16. Qa4 {[%clk 0:02:10]}  Qc5+ {[%clk 0:02:05]} 17. Kh2 {[%clk 0:02:08]}  Rfd8 {[%clk 0:01:59]} 18. Rad1 {[%clk 0:01:52]}  g5 {[%clk 0:01:38]} 19. Bxc6 {[%clk 0:01:46]}  bxc6 {[%clk 0:01:34]} 20. Rde1 {[%clk 0:01:09]}  Rd2 {[%clk 0:01:23]} 21. Ne4 {[%clk 0:01:00]}  Qc4 {[%clk 0:01:12]} 22. Qxc4 {[%clk 0:00:58]}  Bxc4 {[%clk 0:00:51]} 23. Nxd2 {[%clk 0:00:58]} 1-0


[Site "https://www.chess.com"]

[Event "Titled Tuesday Blitz June 27 Early 2023"]
[White "Nozdrachev, Leonid"]
[Black "Beerdsen, Thomas"]
[WhiteFideId "24113433"]
[BlackFideId "1030108"]
[WhiteElo "2585"]
[BlackElo "2827"]
[Result "0-1"]
[Round "2"]
[TimeControl "180+2"]
[Date "2023.06.27"]
[WhiteClock "0:00:18"]
[BlackClock "0:02:09"]
[Board "59"]

1. e4 {[%clk 0:02:57]}  e5 {[%clk 0:02:59]} 2. Nf3 {[%clk 0:02:57]}  Nc6 {[%clk 0:03:00]} 3. Bc4 {[%clk 0:02:55]}  Nf6 {[%clk 0:03:00]} 4. d3 {[%clk 0:02:55]}  h6 {[%clk 0:02:59]} 5. O-O {[%clk 0:02:51]}  d6 {[%clk 0:03:00]} 6. a3 {[%clk 0:02:50]}  g5 {[%clk 0:03:00]} 7. Kh1 {[%clk 0:02:45]}  g4 {[%clk 0:03:00]} 8. Ng1 {[%clk 0:02:43]}  Qe7 {[%clk 0:02:53]} 9. Nc3 {[%clk 0:02:39]}  Be6 {[%clk 0:02:52]} 10. f4 {[%clk 0:02:38]}  Bxc4 {[%clk 0:02:43]} 11. dxc4 {[%clk 0:02:34]}  exf4 {[%clk 0:02:43]} 12. Bxf4 {[%clk 0:02:20]}  Rg8 {[%clk 0:02:43]} 13. Nge2 {[%clk 0:02:11]}  O-O-O {[%clk 0:02:39]} 14. Ng3 {[%clk 0:02:06]}  Qe6 {[%clk 0:02:35]} 15. Nd5 {[%clk 0:01:45]}  Be7 {[%clk 0:02:29]} 16. Nf5 {[%clk 0:01:31]}  Nxe4 {[%clk 0:02:23]} 17. Ndxe7+ {[%clk 0:01:15]}  Nxe7 {[%clk 0:02:24]} 18. Nxe7+ {[%clk 0:01:05]}  Qxe7 {[%clk 0:02:25]} 19. Qd5 {[%clk 0:00:52]}  Kb8 {[%clk 0:02:18]} 20. Rae1 {[%clk 0:00:51]}  Rde8 {[%clk 0:02:15]} 21. Bxh6 {[%clk 0:00:44]}  Nf2+ {[%clk 0:02:08]} 22. Kg1 {[%clk 0:00:42]}  Nh3+ {[%clk 0:02:08]} 23. gxh3 {[%clk 0:00:38]}  gxh3+ {[%clk 0:02:09]} 24. Kf2 {[%clk 0:00:21]}  Qf6+ {[%clk 0:02:09]} 25. Qf3 {[%clk 0:00:18]}  Rg2# {[%clk 0:02:09]} 0-1


[Site "https://www.chess.com"]

[Event "Titled Tuesday Blitz June 27 Early 2023"]
[White "Mortazavi, Ali"]
[Black "Talibov, Shiroghlan"]
[WhiteFideId "401323"]
[BlackFideId "13429078"]
[WhiteElo "2578"]
[BlackElo "2822"]
[Result "1/2-1/2"]
[Round "2"]
[TimeControl "180+2"]
[Date "2023.06.27"]
[WhiteClock "0:00:09"]
[BlackClock "0:00:07"]
[Board "62"]

1. Nf3 {[%clk 0:03:00]}  d5 {[%clk 0:02:56]} 2. g3 {[%clk 0:03:01]}  Bg4 {[%clk 0:02:55]} 3. Bg2 {[%clk 0:03:01]}  Bxf3 {[%clk 0:02:52]} 4. Bxf3 {[%clk 0:03:01]}  e5 {[%clk 0:02:52]} 5. d3 {[%clk 0:02:59]}  Nf6 {[%clk 0:02:51]} 6. O-O {[%clk 0:02:59]}  h6 {[%clk 0:02:51]} 7. c4 {[%clk 0:02:56]}  c6 {[%clk 0:02:51]} 8. Qb3 {[%clk 0:02:39]}  Qd7 {[%clk 0:02:44]} 9. cxd5 {[%clk 0:02:31]}  Nxd5 {[%clk 0:02:45]} 10. Nc3 {[%clk 0:02:28]}  Nf6 {[%clk 0:02:44]} 11. Rd1 {[%clk 0:02:04]}  Na6 {[%clk 0:02:42]} 12. Be3 {[%clk 0:02:00]}  Bc5 {[%clk 0:02:40]} 13. Bxc5 {[%clk 0:01:56]}  Nxc5 {[%clk 0:02:41]} 14. Qa3 {[%clk 0:01:53]}  Ne6 {[%clk 0:02:40]} 15. e3 {[%clk 0:01:53]}  Qe7 {[%clk 0:02:40]} 16. Qxe7+ {[%clk 0:01:38]}  Kxe7 {[%clk 0:02:41]} 17. b4 {[%clk 0:01:39]}  a6 {[%clk 0:02:37]} 18. Kf1 {[%clk 0:01:36]}  Rhd8 {[%clk 0:02:35]} 19. Ke2 {[%clk 0:01:37]}  Nc7 {[%clk 0:02:30]} 20. a4 {[%clk 0:01:36]}  Ncd5 {[%clk 0:02:28]} 21. Nxd5+ {[%clk 0:01:33]}  cxd5 {[%clk 0:02:29]} 22. Rdc1 {[%clk 0:01:29]}  Rac8 {[%clk 0:02:29]} 23. a5 {[%clk 0:01:24]}  Kd6 {[%clk 0:02:27]} 24. Kd2 {[%clk 0:01:25]}  g6 {[%clk 0:02:22]} 25. Bg2 {[%clk 0:01:17]}  Nd7 {[%clk 0:02:22]} 26. f4 {[%clk 0:01:12]}  f5 {[%clk 0:02:13]} 27. Rxc8 {[%clk 0:00:59]}  Rxc8 {[%clk 0:02:12]} 28. Rc1 {[%clk 0:01:00]}  Rxc1 {[%clk 0:02:12]} 29. Kxc1 {[%clk 0:01:01]}  Nb8 {[%clk 0:02:09]} 30. fxe5+ {[%clk 0:00:58]}  Kxe5 {[%clk 0:02:10]} 31. d4+ {[%clk 0:00:53]}  Ke6 {[%clk 0:02:06]} 32. Kc2 {[%clk 0:00:53]}  Nc6 {[%clk 0:02:05]} 33. Kc3 {[%clk 0:00:52]}  Kd6 {[%clk 0:02:05]} 34. Bf1 {[%clk 0:00:48]}  Na7 {[%clk 0:02:03]} 35. Bd3 {[%clk 0:00:43]}  h5 {[%clk 0:02:03]} 36. h4 {[%clk 0:00:42]}  Kc6 {[%clk 0:02:04]} 37. Kb3 {[%clk 0:00:42]}  Nc8 {[%clk 0:02:00]} 38. Kc3 {[%clk 0:00:40]}  Nd6 {[%clk 0:02:00]} 39. Kb3 {[%clk 0:00:35]}  Ne8 {[%clk 0:01:55]} 40. Ka4 {[%clk 0:00:36]}  Nd6 {[%clk 0:01:51]} 41. Kb3 {[%clk 0:00:36]}  Nb5 {[%clk 0:01:42]} 42. Be2 {[%clk 0:00:34]}  Nc7 {[%clk 0:01:26]} 43. Bd3 {[%clk 0:00:34]}  b5 {[%clk 0:01:19]} 44. axb6 {[%clk 0:00:33]}  Kxb6 {[%clk 0:01:18]} 45. Be2 {[%clk 0:00:32]}  Nb5 {[%clk 0:01:17]} 46. Bf3 {[%clk 0:00:31]}  Nc7 {[%clk 0:01:11]} 47. Be2 {[%clk 0:00:31]}  Kc6 {[%clk 0:01:10]} 48. Ka4 {[%clk 0:00:31]}  Kb6 {[%clk 0:01:10]} 49. Bd3 {[%clk 0:00:30]}  Ne8 {[%clk 0:01:02]} 50. Kb3 {[%clk 0:00:23]}  Nd6 {[%clk 0:00:59]} 51. Kc3 {[%clk 0:00:20]}  Ne8 {[%clk 0:00:42]} 52. Kb3 {[%clk 0:00:20]}  Nf6 {[%clk 0:00:43]} 53. Kc3 {[%clk 0:00:19]}  Ng4 {[%clk 0:00:41]} 54. Kd2 {[%clk 0:00:19]}  Nf2 {[%clk 0:00:41]} 55. Bb1 {[%clk 0:00:15]}  Kb5 {[%clk 0:00:37]} 56. Kc3 {[%clk 0:00:14]}  Ka4 {[%clk 0:00:25]} 57. Bc2+ {[%clk 0:00:12]}  Ka3 {[%clk 0:00:26]} 58. Bb3 {[%clk 0:00:12]}  Ne4+ {[%clk 0:00:24]} 59. Kc2 {[%clk 0:00:13]}  Nf6 {[%clk 0:00:22]} 60. Kc3 {[%clk 0:00:12]}  Ne4+ {[%clk 0:00:20]} 61. Kc2 {[%clk 0:00:12]}  Kxb4 {[%clk 0:00:20]} 62. Bxd5 {[%clk 0:00:12]}  Nxg3 {[%clk 0:00:21]} 63. Bf7 {[%clk 0:00:10]}  Nf1 {[%clk 0:00:08]} 64. Kd3 {[%clk 0:00:09]}  Nh2 {[%clk 0:00:05]} 65. Bxg6 {[%clk 0:00:10]}  Nf3 {[%clk 0:00:06]} 66. Bxh5 {[%clk 0:00:10]}  Nxh4 {[%clk 0:00:06]} 67. e4 {[%clk 0:00:09]}  fxe4+ {[%clk 0:00:06]} 68. Kxe4 {[%clk 0:00:10]}  a5 {[%clk 0:00:06]} 69. Be8 {[%clk 0:00:10]}  a4 {[%clk 0:00:06]} 70. Bxa4 {[%clk 0:00:07]}  Kxa4 {[%clk 0:00:06]} 71. d5 {[%clk 0:00:07]}  Kb5 {[%clk 0:00:06]} 72. d6 {[%clk 0:00:08]}  Kc6 {[%clk 0:00:06]} 73. d7 {[%clk 0:00:09]}  Kxd7 {[%clk 0:00:07]} 1/2-1/2


[Site "https://www.chess.com"]

[Event "Titled Tuesday Blitz June 27 Early 2023"]
[White "Gharibyan, Mamikon"]
[Black "Vlassov, Nikolai"]
[WhiteFideId "13308300"]
[BlackFideId "4103360"]
[WhiteElo "2818"]
[BlackElo "2576"]
[Result "0-1"]
[Round "2"]
[TimeControl "180+2"]
[Date "2023.06.27"]
[WhiteClock "0:00:05"]
[BlackClock "0:00:10"]
[Board "63"]

1. e4 {[%clk 0:03:00]}  Nc6 {[%clk 0:02:59]} 2. Nf3 {[%clk 0:02:54]}  d5 {[%clk 0:02:59]} 3. exd5 {[%clk 0:02:49]}  Qxd5 {[%clk 0:02:59]} 4. Nc3 {[%clk 0:02:49]}  Qa5 {[%clk 0:02:59]} 5. Bb5 {[%clk 0:02:46]}  Bd7 {[%clk 0:02:59]} 6. Rb1 {[%clk 0:02:41]}  Nf6 {[%clk 0:02:58]} 7. b4 {[%clk 0:02:36]}  Nxb4 {[%clk 0:02:53]} 8. Bxd7+ {[%clk 0:02:35]}  Nxd7 {[%clk 0:02:52]} 9. a3 {[%clk 0:02:33]}  Nd5 {[%clk 0:02:50]} 10. Rxb7 {[%clk 0:02:15]}  Nxc3 {[%clk 0:02:46]} 11. dxc3 {[%clk 0:02:16]}  Qxc3+ {[%clk 0:02:33]} 12. Bd2 {[%clk 0:02:15]}  Qc6 {[%clk 0:02:32]} 13. Rb3 {[%clk 0:02:12]}  e6 {[%clk 0:02:18]} 14. O-O {[%clk 0:01:57]}  Bd6 {[%clk 0:02:17]} 15. Bc3 {[%clk 0:00:58]}  O-O {[%clk 0:02:13]} 16. Qd4 {[%clk 0:00:58]}  e5 {[%clk 0:02:04]} 17. Qg4 {[%clk 0:00:55]}  f5 {[%clk 0:01:57]} 18. Qh3 {[%clk 0:00:53]}  Rab8 {[%clk 0:01:35]} 19. Bb4 {[%clk 0:00:37]}  Nf6 {[%clk 0:01:05]} 20. Qxf5 {[%clk 0:00:29]}  e4 {[%clk 0:00:32]} 21. Nd4 {[%clk 0:00:19]}  Qc4 {[%clk 0:00:28]} 22. Qe6+ {[%clk 0:00:15]}  Qxe6 {[%clk 0:00:26]} 23. Nxe6 {[%clk 0:00:16]}  Rfe8 {[%clk 0:00:25]} 24. Nd4 {[%clk 0:00:08]}  c5 {[%clk 0:00:23]} 25. Nf5 {[%clk 0:00:09]}  Bf8 {[%clk 0:00:20]} 26. Bc3 {[%clk 0:00:08]}  Nd5 {[%clk 0:00:17]} 27. Bd2 {[%clk 0:00:07]}  Rxb3 {[%clk 0:00:16]} 28. cxb3 {[%clk 0:00:08]}  Rb8 {[%clk 0:00:15]} 29. Rb1 {[%clk 0:00:08]}  c4 {[%clk 0:00:15]} 30. b4 {[%clk 0:00:09]}  a5 {[%clk 0:00:15]} 31. Kf1 {[%clk 0:00:05]}  c3 {[%clk 0:00:15]} 32. Be1 {[%clk 0:00:05]}  axb4 {[%clk 0:00:15]} 33. axb4 {[%clk 0:00:05]}  Rxb4 {[%clk 0:00:15]} 34. Rc1 {[%clk 0:00:05]}  Rc4 {[%clk 0:00:14]} 35. Ke2 {[%clk 0:00:05]}  c2 {[%clk 0:00:10]} 36. Ne3 {[%clk 0:00:03]}  Nxe3 {[%clk 0:00:10]} 37. fxe3 {[%clk 0:00:03]}  Ba3 {[%clk 0:00:10]} 38. Kd2 {[%clk 0:00:03]}  Bxc1+ {[%clk 0:00:10]} 39. Kxc1 {[%clk 0:00:04]}  Kf7 {[%clk 0:00:10]} 40. Bg3 {[%clk 0:00:05]}  Ke6 {[%clk 0:00:10]} 41. Be5 {[%clk 0:00:05]}  Kxe5 {[%clk 0:00:10]} 0-1


[Site "https://www.chess.com"]

[Event "Titled Tuesday Blitz June 27 Early 2023"]
[White "Gontcharov, Vladislav"]
[Black "Horvath, Dominik"]
[WhiteFideId "4123492"]
[BlackFideId "1642561"]
[WhiteElo "2575"]
[BlackElo "2816"]
[Result "0-1"]
[Round "2"]
[TimeControl "180+2"]
[Date "2023.06.27"]
[WhiteClock "0:00:00"]
[BlackClock "0:00:36"]
[Board "64"]

1. d4 {[%clk 0:03:00]}  f5 {[%clk 0:02:48]} 2. g3 {[%clk 0:02:57]}  e6 {[%clk 0:02:48]} 3. Bg2 {[%clk 0:02:56]}  g6 {[%clk 0:02:49]} 4. e4 {[%clk 0:02:53]}  fxe4 {[%clk 0:02:46]} 5. Bxe4 {[%clk 0:02:51]}  Nf6 {[%clk 0:02:45]} 6. Bg2 {[%clk 0:02:51]}  Bg7 {[%clk 0:02:45]} 7. Nc3 {[%clk 0:02:48]}  O-O {[%clk 0:02:46]} 8. Nf3 {[%clk 0:02:47]}  Nc6 {[%clk 0:02:44]} 9. O-O {[%clk 0:02:45]}  Rb8 {[%clk 0:02:42]} 10. h3 {[%clk 0:02:41]}  b6 {[%clk 0:02:37]} 11. Bg5 {[%clk 0:02:36]}  h6 {[%clk 0:02:35]} 12. Be3 {[%clk 0:02:33]}  Ne7 {[%clk 0:02:02]} 13. Ne5 {[%clk 0:02:24]}  Bb7 {[%clk 0:01:55]} 14. Bxb7 {[%clk 0:02:20]}  Rxb7 {[%clk 0:01:56]} 15. Qd3 {[%clk 0:02:20]}  Kh7 {[%clk 0:01:55]} 16. Rad1 {[%clk 0:02:15]}  d6 {[%clk 0:01:54]} 17. Ng4 {[%clk 0:02:11]}  Qd7 {[%clk 0:01:53]} 18. Nxf6+ {[%clk 0:01:47]}  Bxf6 {[%clk 0:01:50]} 19. Ne2 {[%clk 0:01:43]}  Bg7 {[%clk 0:01:50]} 20. Nf4 {[%clk 0:01:43]}  Rbb8 {[%clk 0:01:43]} 21. Qe4 {[%clk 0:01:37]}  Rf6 {[%clk 0:01:43]} 22. h4 {[%clk 0:01:29]}  Qc6 {[%clk 0:01:40]} 23. Qxc6 {[%clk 0:01:27]}  Nxc6 {[%clk 0:01:41]} 24. d5 {[%clk 0:01:23]}  exd5 {[%clk 0:01:38]} 25. Nxd5 {[%clk 0:01:23]}  Rf7 {[%clk 0:01:39]} 26. c3 {[%clk 0:01:19]}  b5 {[%clk 0:01:39]} 27. Kg2 {[%clk 0:01:13]}  b4 {[%clk 0:01:36]} 28. cxb4 {[%clk 0:01:11]}  Nxb4 {[%clk 0:01:35]} 29. Nxb4 {[%clk 0:01:10]}  Rxb4 {[%clk 0:01:36]} 30. b3 {[%clk 0:01:11]}  a5 {[%clk 0:01:31]} 31. Rd3 {[%clk 0:00:58]}  a4 {[%clk 0:01:28]} 32. Bd2 {[%clk 0:00:44]}  Re4 {[%clk 0:01:25]} 33. bxa4 {[%clk 0:00:35]}  Rxa4 {[%clk 0:01:24]} 34. a3 {[%clk 0:00:35]}  Bd4 {[%clk 0:01:17]} 35. f3 {[%clk 0:00:23]}  c5 {[%clk 0:01:15]} 36. Rb1 {[%clk 0:00:22]}  Rd7 {[%clk 0:01:05]} 37. Be3 {[%clk 0:00:18]}  Bxe3 {[%clk 0:01:03]} 38. Rxe3 {[%clk 0:00:18]}  d5 {[%clk 0:01:04]} 39. Rb6 {[%clk 0:00:18]}  d4 {[%clk 0:01:00]} 40. Ree6 {[%clk 0:00:18]}  d3 {[%clk 0:00:50]} 41. Rxg6 {[%clk 0:00:14]}  d2 {[%clk 0:00:49]} 42. Rxh6+ {[%clk 0:00:14]}  Kg7 {[%clk 0:00:49]} 43. Rbg6+ {[%clk 0:00:14]}  Kf7 {[%clk 0:00:50]} 44. Rf6+ {[%clk 0:00:12]}  Ke7 {[%clk 0:00:49]} 45. Re6+ {[%clk 0:00:03]}  Kd8 {[%clk 0:00:45]} 46. Rd6 {[%clk 0:00:00]}  Rd4 {[%clk 0:00:36]} 0-1


[Site "https://www.chess.com"]

[Event "Titled Tuesday Blitz June 27 Early 2023"]
[White "Elsa167"]
[Black "Guerra Tulcan, Lenin"]
[BlackFideId "3601382"]
[WhiteElo "2815"]
[BlackElo "2574"]
[Result "1-0"]
[Round "2"]
[TimeControl "180+2"]
[Date "2023.06.27"]
[WhiteClock "0:00:54"]
[BlackClock "0:00:29"]
[Board "65"]

1. d4 {[%clk 0:03:00]}  Nf6 {[%clk 0:02:59]} 2. c4 {[%clk 0:03:01]}  c5 {[%clk 0:02:59]} 3. d5 {[%clk 0:03:01]}  b5 {[%clk 0:03:00]} 4. cxb5 {[%clk 0:03:02]}  a6 {[%clk 0:03:00]} 5. bxa6 {[%clk 0:03:03]}  Bxa6 {[%clk 0:03:01]} 6. Nc3 {[%clk 0:03:04]}  d6 {[%clk 0:03:02]} 7. e4 {[%clk 0:03:05]}  Bxf1 {[%clk 0:03:03]} 8. Kxf1 {[%clk 0:03:05]}  g6 {[%clk 0:03:02]} 9. Nf3 {[%clk 0:03:06]}  Bg7 {[%clk 0:03:03]} 10. g3 {[%clk 0:03:07]}  O-O {[%clk 0:03:03]} 11. Kg2 {[%clk 0:03:08]}  Nbd7 {[%clk 0:03:04]} 12. Re1 {[%clk 0:03:08]}  Ra6 {[%clk 0:03:04]} 13. e5 {[%clk 0:03:08]}  dxe5 {[%clk 0:03:03]} 14. Nxe5 {[%clk 0:03:09]}  Nxe5 {[%clk 0:03:03]} 15. Rxe5 {[%clk 0:03:10]}  Rd6 {[%clk 0:02:59]} 16. Qf3 {[%clk 0:03:07]}  Nd7 {[%clk 0:02:53]} 17. Re2 {[%clk 0:03:01]}  Ne5 {[%clk 0:02:50]} 18. Qe4 {[%clk 0:02:59]}  f5 {[%clk 0:02:46]} 19. Qa4 {[%clk 0:02:48]}  Rxd5 {[%clk 0:02:40]} 20. Bf4 {[%clk 0:02:48]}  Rd4 {[%clk 0:02:37]} 21. Qb3+ {[%clk 0:02:43]}  c4 {[%clk 0:02:31]} 22. Qb7 {[%clk 0:02:33]}  Rd7 {[%clk 0:02:03]} 23. Qb5 {[%clk 0:02:33]}  Nd3 {[%clk 0:01:43]} 24. Qxc4+ {[%clk 0:02:33]}  Kh8 {[%clk 0:01:43]} 25. Bg5 {[%clk 0:02:20]}  Qa8+ {[%clk 0:01:37]} 26. Kg1 {[%clk 0:02:16]}  Ne5 {[%clk 0:01:36]} 27. Rxe5 {[%clk 0:02:01]}  Bxe5 {[%clk 0:01:36]} 28. Qe6 {[%clk 0:02:01]}  Bxc3 {[%clk 0:01:30]} 29. Qxd7 {[%clk 0:01:47]}  Bxb2 {[%clk 0:01:30]} 30. Re1 {[%clk 0:01:48]}  Qxa2 {[%clk 0:01:15]} 31. Rxe7 {[%clk 0:01:48]}  Qa1+ {[%clk 0:01:12]} 32. Kg2 {[%clk 0:01:46]}  Bg7 {[%clk 0:01:08]} 33. Be3 {[%clk 0:01:14]}  Qf6 {[%clk 0:01:04]} 34. Rxg7 {[%clk 0:01:09]}  Qxg7 {[%clk 0:01:00]} 35. Bd4 {[%clk 0:01:10]}  Qxd4 {[%clk 0:01:00]} 36. Qxd4+ {[%clk 0:01:10]}  Kg8 {[%clk 0:01:01]} 37. Qd7 {[%clk 0:01:08]}  Rf7 {[%clk 0:01:00]} 38. Qe8+ {[%clk 0:01:08]}  Rf8 {[%clk 0:01:00]} 39. Qe6+ {[%clk 0:01:08]}  Kg7 {[%clk 0:01:00]} 40. h4 {[%clk 0:01:06]}  Rf7 {[%clk 0:00:57]} 41. Kf3 {[%clk 0:01:05]}  h6 {[%clk 0:00:46]} 42. Kf4 {[%clk 0:00:59]}  Rf8 {[%clk 0:00:46]} 43. Qe2 {[%clk 0:00:53]}  Rf7 {[%clk 0:00:44]} 44. h5 {[%clk 0:00:53]}  g5+ {[%clk 0:00:43]} 45. Kf3 {[%clk 0:00:54]}  Kf6 {[%clk 0:00:31]} 46. Qa6+ {[%clk 0:00:53]}  Ke5 {[%clk 0:00:30]} 47. Qxh6 {[%clk 0:00:53]}  g4+ {[%clk 0:00:30]} 48. Kg2 {[%clk 0:00:53]}  f4 {[%clk 0:00:30]} 49. gxf4+ {[%clk 0:00:53]}  Rxf4 {[%clk 0:00:31]} 50. Qxf4+ {[%clk 0:00:54]}  Kxf4 {[%clk 0:00:29]} 51. h6 {[%clk 0:00:54]} 1-0


[Site "https://www.chess.com"]

[Event "Titled Tuesday Blitz June 27 Early 2023"]
[White "Aloma Vidal, Robert"]
[Black "Bazeev, German"]
[WhiteFideId "2260409"]
[BlackFideId "24119350"]
[WhiteElo "2573"]
[BlackElo "2815"]
[Result "0-1"]
[Round "2"]
[TimeControl "180+2"]
[Date "2023.06.27"]
[WhiteClock "0:00:00"]
[BlackClock "0:00:09"]
[Board "66"]

1. e4 {[%clk 0:03:00]}  c5 {[%clk 0:03:00]} 2. c3 {[%clk 0:03:00]}  Nf6 {[%clk 0:03:00]} 3. e5 {[%clk 0:03:01]}  Nd5 {[%clk 0:03:00]} 4. Nf3 {[%clk 0:03:01]}  Nc6 {[%clk 0:03:00]} 5. Bc4 {[%clk 0:03:02]}  e6 {[%clk 0:03:01]} 6. d4 {[%clk 0:03:01]}  cxd4 {[%clk 0:03:02]} 7. cxd4 {[%clk 0:03:01]}  d6 {[%clk 0:03:02]} 8. O-O {[%clk 0:03:02]}  Be7 {[%clk 0:03:03]} 9. a3 {[%clk 0:03:02]}  O-O {[%clk 0:03:00]} 10. Bd3 {[%clk 0:03:02]}  Bd7 {[%clk 0:02:58]} 11. Qc2 {[%clk 0:03:03]}  g6 {[%clk 0:02:57]} 12. Bh6 {[%clk 0:03:01]}  Re8 {[%clk 0:02:57]} 13. Nbd2 {[%clk 0:02:56]}  Rc8 {[%clk 0:02:57]} 14. Qd1 {[%clk 0:02:54]}  dxe5 {[%clk 0:02:35]} 15. dxe5 {[%clk 0:02:53]}  Qc7 {[%clk 0:02:34]} 16. Qe2 {[%clk 0:02:43]}  Red8 {[%clk 0:02:34]} 17. Rac1 {[%clk 0:02:42]}  Be8 {[%clk 0:02:34]} 18. h4 {[%clk 0:02:31]}  Qb6 {[%clk 0:02:30]} 19. Nc4 {[%clk 0:02:29]}  Qb3 {[%clk 0:02:26]} 20. Bc2 {[%clk 0:02:19]}  Qb5 {[%clk 0:02:22]} 21. Bb1 {[%clk 0:02:02]}  Nb6 {[%clk 0:02:15]} 22. Bd3 {[%clk 0:01:40]}  Qb3 {[%clk 0:01:42]} 23. Nd6 {[%clk 0:01:39]}  Rb8 {[%clk 0:01:00]} 24. Rc3 {[%clk 0:01:10]}  Qa4 {[%clk 0:00:56]} 25. b4 {[%clk 0:01:02]}  Nd5 {[%clk 0:00:50]} 26. Rcc1 {[%clk 0:00:35]}  Qxa3 {[%clk 0:00:50]} 27. b5 {[%clk 0:00:35]}  Ncb4 {[%clk 0:00:47]} 28. Be4 {[%clk 0:00:32]}  Qa2 {[%clk 0:00:27]} 29. Qe1 {[%clk 0:00:32]}  a5 {[%clk 0:00:21]} 30. Ra1 {[%clk 0:00:29]}  Qb2 {[%clk 0:00:20]} 31. Rxa5 {[%clk 0:00:27]}  Nc3 {[%clk 0:00:19]} 32. Nxb7 {[%clk 0:00:18]}  Rd1 {[%clk 0:00:15]} 33. Qxd1 {[%clk 0:00:10]}  Nxd1 {[%clk 0:00:16]} 34. Rxd1 {[%clk 0:00:10]}  Qb3 {[%clk 0:00:16]} 35. Re1 {[%clk 0:00:09]}  Nd5 {[%clk 0:00:16]} 36. Nd6 {[%clk 0:00:08]}  Rd8 {[%clk 0:00:14]} 37. Bd2 {[%clk 0:00:04]}  Qb2 {[%clk 0:00:07]} 38. Rb1 {[%clk 0:00:04]}  Qxb1+ {[%clk 0:00:06]} 39. Bxb1 {[%clk 0:00:03]}  Bxd6 {[%clk 0:00:06]} 40. exd6 {[%clk 0:00:04]}  Rxd6 {[%clk 0:00:07]} 41. Bh6 {[%clk 0:00:03]}  f6 {[%clk 0:00:07]} 42. Ra8 {[%clk 0:00:03]}  Kf7 {[%clk 0:00:07]} 43. b6 {[%clk 0:00:04]}  Bc6 {[%clk 0:00:07]} 44. Be4 {[%clk 0:00:04]}  Bxa8 {[%clk 0:00:07]} 45. Nd4 {[%clk 0:00:05]}  Rxb6 {[%clk 0:00:07]} 46. f3 {[%clk 0:00:04]}  Bb7 {[%clk 0:00:07]} 47. Kh2 {[%clk 0:00:04]}  e5 {[%clk 0:00:08]} 48. Ne2 {[%clk 0:00:04]}  f5 {[%clk 0:00:08]} 49. Bd3 {[%clk 0:00:04]}  Nf6 {[%clk 0:00:08]} 50. Bc4+ {[%clk 0:00:04]}  Bd5 {[%clk 0:00:08]} 51. Bd3 {[%clk 0:00:05]}  Rb3 {[%clk 0:00:08]} 52. Ba6 {[%clk 0:00:05]}  e4 {[%clk 0:00:08]} 53. fxe4 {[%clk 0:00:05]}  Ng4+ {[%clk 0:00:09]} 54. Kh1 {[%clk 0:00:04]}  Bxe4 {[%clk 0:00:10]} 55. Nf4 {[%clk 0:00:00]}  Rb1+ {[%clk 0:00:09]} 0-1


[Site "https://www.chess.com"]